[Event "Khanty-Mansiysk FIDE GP (Women)"]
[Site "Khanty-Mansiysk"]
[Date "2014.04.17"]
[Round "8"]
[White "Zhao, Xue"]
[Black "Hou, Yifan"]
[Result "1/2-1/2"]
[ECO "A17"]
[WhiteElo "2552"]
[BlackElo "2618"]
[Annotator "ChessBase Website"]
[PlyCount "101"]
[EventDate "2014.04.09"]
[EventType "tourn"]
[EventRounds "11"]
[EventCountry "RUS"]
[EventCategory "10"]
[SourceTitle "CBM 160"]
[Source "ChessBase"]
[SourceDate "2014.05.15"]
[SourceVersion "1"]
[SourceVersionDate "2014.05.15"]
[SourceQuality "1"]
[TimeControl "40/5400+30:1800+30"]
[WhiteClock "1:30:00"]
[BlackClock "1:30:00"]

1. c4 {[%emt 0:00:00]} b6 {[%emt 0:00:00]} 2. Nc3 {[%emt 0:02:53]} e6 {[%emt 0:
00:00]} 3. e4 {[%emt 0:04:14]} Bb7 {[%emt 0:00:09]} 4. Nf3 {[%emt 0:01:52]} Nf6
{[%emt 0:01:30]} 5. e5 {[%emt 0:01:40]} Ne4 {[%emt 0:00:15]} 6. Nxe4 {[%emt 0:
05:30]} (6. Bd3 Nxc3 7. dxc3 Be7 8. Qe2 d6 9. Bf4 Nd7 10. O-O-O Bxf3 11. Qxf3
Bg5 12. exd6 cxd6 13. Bxg5 Qxg5+ 14. Kb1 Ke7 15. h4 Qc5 16. Be2 Rhd8 17. Rd4
Rac8 18. Rhd1 Nf6 19. g4 h6 20. a3 Rc7 21. Qe3 Ne8 22. f4 Rcd7 23. g5 g6 24. b4
Qc6 25. h5 gxh5 26. f5 Rc8 27. fxe6 fxe6 28. Rf1 Qg2 29. gxh6 Nf6 30. Rg1 Qh2
31. Rg7+ Kd8 32. Qxe6 Kc7 33. Qxf6 Re8 34. Rxd7+ Kxd7 35. Bd1 Re3 {Potkin,V 
(2647)-Riazantsev,A (2708) Khanty-Mansiysk 2013 1-0}) 6... Bxe4 {[%emt 0:00:07]
} 7. Be2 {[%emt 0:00:08]} d6 {[%emt 0:06:39]} 8. O-O {[%emt 0:03:30]} Nd7 {
[%emt 0:04:58]} 9. d3 {[%emt 0:04:43]} Bb7 {[%emt 0:00:06]} 10. Bf4 {[%emt 0:
05:25]} dxe5 {[%emt 0:09:01]} 11. Nxe5 {[%emt 0:00:13]} Bd6 {[%emt 0:16:13]}
12. d4 {[%emt 0:08:37]} Qf6 {[%emt 0:04:40]} 13. Bf3 {[%emt 0:03:31]} c6 {
[%emt 0:02:01]} 14. Bg3 {[%emt 0:22:32]} Nxe5 {[%emt 0:03:18]} 15. dxe5 {
[%emt 0:00:12]} Bxe5 {[%emt 0:00:03]} 16. Qa4 $44 {[%emt 0:00:04][%csl Rc6]
Hou Yifan employed the same system she used against Stefanova earlier, except
now Zhao Xue's pawn was not on d4 just yet. This gave both players interesting
possibilities, and Zhao Xue sacrificed a pawn for a small initiative. This was
never full compensation for the pawn, but it was enough to hold equality on
most lines and eventually the game turned into a drawish endgame.} O-O {
[%emt 0:00:45]} 17. Rad1 {[%emt 0:03:59]} Bd4 {[%emt 0:02:56]} 18. Bxc6 {
[%emt 0:05:09]} Bxc6 {[%emt 0:00:06]} 19. Qxc6 {[%emt 0:00:04]} Bxb2 {[%emt 0:
01:20]} 20. Rd7 {[%emt 0:00:59]} h6 {[%emt 0:06:46]} 21. Bd6 {[%emt 0:08:18]}
Rfe8 {[%emt 0:02:51]} 22. Rxa7 {[%emt 0:01:16]} Rxa7 {[%emt 0:02:31]} 23. Qxe8+
{[%emt 0:00:07]} Kh7 {[%emt 0:00:03]} 24. Qb8 {[%emt 0:02:16]} Ra4 {[%emt 0:06:
01]} 25. Qxb6 {[%emt 0:02:57]} Rxc4 {[%emt 0:00:07]} 26. Bc5 {[%emt 0:04:31]}
Be5 {[%emt 0:09:00]} 27. Be3 {[%emt 0:02:18]} Qf5 {[%emt 0:00:33]} 28. h3 {
[%emt 0:01:55]} Qd3 {[%emt 0:06:45]} 29. Qb1 {[%emt 0:00:49]} Qg6 {[%emt 0:08:
48]} 30. Rc1 {[%emt 0:01:05]} Re4 {[%emt 0:01:06]} 31. Qd3 {[%emt 0:01:46]} h5
{[%emt 0:01:53]} 32. Kf1 {[%emt 0:00:57]} Ra4 {[%emt 0:01:20]} 33. Qb3 {
[%emt 0:00:36]} Qe4 {[%emt 0:00:33]} 34. Qc2 {[%emt 0:00:37]} Qxc2 {[%emt 0:00:
49]} 35. Rxc2 {[%emt 0:00:03]} Kg6 {[%emt 0:00:04]} 36. Ke2 {[%emt 0:00:49]}
Kf5 {[%emt 0:00:11]} 37. Kd3 {[%emt 0:00:16]} g5 {[%emt 0:00:30]} 38. Bc5 {
[%emt 0:00:51]} g4 {[%emt 0:03:25]} 39. hxg4+ {[%emt 0:00:07]} hxg4 {[%emt 0:
01:06]} 40. g3 {[%emt 0:00:00]} Ra8 {[%emt 0:00:00]} 41. a3 {[%emt 0:06:13]}
Bc7 {[%emt 0:03:20]} 42. Rc4 {[%emt 0:04:42]} e5 {[%emt 0:01:01]} 43. a4 {
[%emt 0:00:12]} Ba5 {[%emt 0:00:41]} 44. Be3 {[%emt 0:00:38]} f6 {[%emt 0:00:
26]} 45. Kc2 {[%emt 0:03:11]} Be1 {[%emt 0:00:51]} 46. Bb6 {[%emt 0:03:33]} Ra6
{[%emt 0:03:15]} 47. Be3 {[%emt 0:00:07]} Ra8 {[%emt 0:00:05]} 48. Kd1 {
[%emt 0:02:06]} Ba5 {[%emt 0:00:06]} 49. Kc2 {[%emt 0:00:08]} Be1 {[%emt 0:00:
06]} 50. Kd1 {[%emt 0:00:11]} Ba5 {[%emt 0:00:09]} 51. Kc2 {[%emt 0:00:04]}
1/2-1/2

[Event "Cappelle op 32nd"]
[Site "Cappelle la Grande"]
[Date "2016.02.13"]
[Round "1"]
[White "Gharamian, Tigran"]
[Black "Bulmaga, Irina"]
[Result "1/2-1/2"]
[ECO "A17"]
[WhiteElo "2643"]
[BlackElo "2395"]
[Annotator "Primel,D"]
[PlyCount "47"]
[EventDate "2016.02.13"]
[EventType "swiss"]
[EventRounds "9"]
[EventCountry "FRA"]
[SourceTitle "EXT 2017"]
[Source "ChessBase"]
[SourceDate "2016.10.25"]
[SourceVersion "1"]
[SourceVersionDate "2016.10.25"]
[SourceQuality "1"]
[TimeControl "40/5400+30:1800+30"]
[WhiteClock "1:30:00"]
[BlackClock "1:30:00"]

1. Nf3 {Début d'un tournoi décevant pour le nordiste} Nf6 2. c4 b6 3. g3 Bb7
4. Bg2 e6 5. O-O Be7 6. Nc3 O-O 7. Re1 d5 8. cxd5 Nxd5 9. Nxd5 exd5 10. d4 Nd7
11. Bf4 (11. b3 Re8 12. Bb2 Bb4 13. Nd2 Nf6 14. a3 Bd6 15. Nc4 Bf8 16. Qc2 Ne4
17. Ne5 f6 18. Nd3 Bd6 19. f3 Ng5 20. Nf2 c5 21. dxc5 Bxc5 22. b4 Be3 23. Qd3
Re7 24. Kh1 Qd6 25. Rad1 Rae8 26. Ne4 Qe6 27. Nc3 d4 28. Nb5 Ba6 29. Bxd4 Bxd4
30. Nxd4 Bxd3 31. Nxe6 Bxe2 32. Rxe2 Nxe6 33. f4 Kf8 34. Bc6 Rc8 35. Ba4 Nc7
36. Rxe7 Kxe7 37. Rd7+ Kf8 38. Bb3 Nb5 39. Rf7+ Ke8 40. Rxg7 Rc1+ {Bu,X (2681)
-Zhao,J (2621) China 2015 1-0}) 11... c5 12. Rc1 Re8 13. Qc2 $146 (13. Rc2 g5
14. Bc1 Bf6 15. dxc5 bxc5 16. Nd2 Qe7 17. Nf1 Rad8 18. Ne3 Nb6 19. Nf5 Qc7 20.
Qd3 Bc8 21. Bh3 Nc4 22. Qf3 Nd6 23. Nh6+ Kg7 24. Bxc8 Qxc8 25. Rd1 Ne4 26. Ng4
Be7 27. b4 Qe6 28. Bb2+ f6 29. bxc5 h5 30. Ne3 Bxc5 31. Bd4 Bxd4 32. Nf5+ Kg6
33. Nxd4 Qd7 34. Rdc1 Rc8 35. Qd3 Kh6 36. Qa6 Rxc2 37. Rxc2 Rb8 38. Qe6 Qxe6
39. Nxe6 Rb6 40. Nd4 Kg6 41. f3 Nd6 42. Rc5 Ra6 {Bewersdorff,O (2343)-Kabir,R 
(2027) Griesheim 2003 1-0 (70)}) 13... c4 14. Nd2 b5 15. e4 Nf8 16. e5 Qb6 17.
Be3 Ne6 18. f4 Bb4 19. a3 Nxd4 20. Qd1 Bxd2 21. Qxd2 Nb3 22. Qf2 d4 23. Bxd4
Nxd4 24. Bxb7 (24. Bxb7 Qxb7 25. Qxd4 Rad8 $132 {[%csl Gc4]}) 1/2-1/2

[Event "Rohde op 12th"]
[Site "Sautron"]
[Date "2012.11.03"]
[Round "9"]
[White "Zubarev, Alexander2"]
[Black "Le Roux, Jean Pierre"]
[Result "1/2-1/2"]
[ECO "A17"]
[WhiteElo "2583"]
[BlackElo "2563"]
[Annotator "Primel,D"]
[PlyCount "69"]
[EventDate "2012.10.27"]
[EventType "swiss"]
[EventRounds "9"]
[EventCountry "FRA"]
[SourceTitle "EXT 2014"]
[Source "ChessBase"]
[SourceDate "2013.11.20"]
[SourceVersion "1"]
[SourceVersionDate "2013.11.20"]
[SourceQuality "1"]
[TimeControl "40/5400+30:1800+30"]
[WhiteClock "1:30:00"]
[BlackClock "1:30:00"]

1. Nf3 {[%emt 0:00:00]} Nf6 {[%emt 0:07:44]} 2. c4 {[%emt 0:00:00]} e6 {
[%emt 0:02:15]} (2... b6 3. g3 Bb7 4. Bg2 c5 5. O-O g6 {Conduit а la variante
hérisson}) 3. Nc3 {[%emt 0:04:38]} Bb4 {[%emt 0:01:44] La variante Nimzo
anglaise} 4. Qc2 {[%emt 0:00:16][%cal Gc2c3,Ga2a3,Gb2b4,Gc1b2]} (4. g4 $5) 4...
c5 {[%emt 0:00:10] Garde la paire de B} (4... O-O {La grande ligne} 5. a3 Bxc3
6. Qxc3 b6 7. b4 Bb7 8. Bb2 $14) 5. a3 {[%emt 0:05:39]} Ba5 {[%emt 0:03:10]} 6.
e3 {[%emt 0:05:40]} (6. g3 {L'alternative} Nc6 7. Bg2 O-O 8. O-O d6) 6... d5 {
[%emt 0:11:35] Pas trop dans l'esprit de la variante} (6... Nc6 7. Be2 O-O 8.
O-O Bb6 9. Rb1 d5 10. b4 cxb4 11. axb4 dxc4 12. Ba3 Bd7 13. Na4 Rc8 14. b5 Na5
15. Bxf8 Qxf8 16. Ne5 Bc7 17. Nxd7 Nxd7 18. d3 cxd3 19. Qxd3 Nf6 20. Bf3 b6 21.
Rfd1 {Bu Xiangzhi (2644)-Romanishin,O (2572)/Bad Woerishofen 2007/EXT 2008/1-0
(34)}) (6... O-O $142 {Plus souple} 7. d4 (7. Be2 Nc6 8. O-O) 7... d6 8. Be2
Nbd7 9. O-O Qe7 10. b3 Bxc3 11. Qxc3 b6 12. Bb2 Ne4 13. Qc2 f5 14. Nd2 ({RR} 
14. Ne1) 14... Bb7 15. f3 Nxd2 16. Qxd2 e5 17. f4 exd4 18. exd4 Rae8) 7. Na4 $5
{[%emt 0:07:59] Reprenant une vieille idée de Smyslov} dxc4 $146 {[%emt 0:20:
07]} ({RR} 7... b6 8. Rb1 Na6 ({RR} 8... b5 9. cxb5 c4 10. b3 cxb3 11. Rxb3 O-O
12. Bb2 Ne4 13. Be2 Nd7 14. O-O Bb7 15. Ba1 Rc8 16. Qb2 Ndf6 17. d3 Nc5 18.
Nxc5 Rxc5 19. Qb1 Bb6 20. Bd4 Rc8 21. Rc1 Qd6 22. Rbc3 Nd7 23. Rxc8 {Tal,M 
(2525)-Romero,M (2240)/Seville 1992/CBM 029/[Ribli]/1-0 (34)}) 9. cxd5 Nxd5 10.
Bb5+ Kf8 11. O-O Bb7 12. d4 Rc8 13. dxc5 Nxc5 14. Nxc5 bxc5 15. Rd1 Qc7 16. Bd2
Nf6 17. b4 Be4 18. Bd3 Bxf3 19. gxf3 cxb4 20. Qa4 Nd5 21. axb4 Bb6 22. Rbc1 {
Smyslov,V-Matanovic,A/Monte Carlo 1967/MCD/1-0 (55)}) 8. Bxc4 {[%emt 0:08:24]}
(8. Nxc5 O-O (8... Qc7 9. Qxc4) 9. Bxc4 {[%cal Gb2b4]}) 8... Nbd7 {[%emt 0:04:
52]} 9. Be2 {[%emt 0:02:44]} (9. O-O a6 {[%cal Gb7b5,Gc8b7]} 10. Be2 b5 11.
Nxc5 Nxc5 (11... Qc7 12. b4)) 9... Qe7 {[%emt 0:16:48]} 10. O-O {[%emt 0:08:15]
} O-O {[%emt 0:00:24]} 11. d4 {[%emt 0:01:55][%cal Gd4c5,Gb2b4]} (11. b4 $5
cxb4 12. Bb2 b5 13. axb4 (13. Bxb5 Bb7 14. axb4 Rac8) 13... Bxb4 14. Bxb5)
11... b6 {[%emt 0:04:38]} 12. dxc5 {[%emt 0:23:46]} (12. e4 {Plus actif malgré
la perte de temps} Bb7 13. e5 Nd5 14. Bg5 $14) 12... bxc5 {[%emt 0:00:32][%csl
Gc4]} 13. Bd2 {[%emt 0:00:08]} (13. b3 Bb7 14. Bb2 Rfd8 15. Rfd1 $11) (13. b4
cxb4 14. Bd2 Bb7 15. Qb3 {[%cal Gb3b7,Ga3b4]} Bd5) 13... Bxd2 {[%emt 0:02:00]}
14. Nxd2 {[%emt 0:00:06]} Bb7 {[%emt 0:00:36]} 15. Rac1 {[%emt 0:01:44][%csl
Rc5]} Rab8 {[%emt 0:02:20]} 16. Rfd1 {[%emt 0:02:46]} Bd5 {[%emt 0:01:46]} 17.
f3 {[%emt 0:03:16]} Rfc8 {[%emt 0:03:54]} 18. Ba6 {[%emt 0:00:56]} Rd8 {
[%emt 0:00:53]} 19. Be2 {[%emt 0:02:55]} (19. e4 Bc6 20. Nc4) 19... Rdc8 {
[%emt 0:00:43]} 20. e4 {[%emt 0:01:34]} Bc6 {[%emt 0:01:38]} 21. Nc3 {[%emt 0:
02:44]} (21. Nc4 $5) 21... Nb6 {[%emt 0:01:33]} 22. Nc4 {[%emt 0:01:05]} Nxc4 {
[%emt 0:02:38]} 23. Bxc4 {[%emt 0:00:02]} Nd7 $1 $11 {[%emt 0:00:17] Les Noirs
n'ont qu'une faiblesse assez facile а protéger} 24. Qf2 {[%emt 0:05:02]} h6 {
[%emt 0:00:22]} 25. Rd2 {[%emt 0:00:17]} a5 {[%emt 0:03:10][%csl Rb2]} 26. Rcd1
{[%emt 0:00:24]} a4 {[%emt 0:01:09]} 27. Qg3 {[%emt 0:04:21][%csl Gd6]} Nb6 {
[%emt 0:01:22]} 28. Ba6 {[%emt 0:02:11]} Rd8 {[%emt 0:00:41]} 29. Qe5 {[%emt 0:
01:11]} (29. Bf1) 29... c4 $132 {[%emt 0:02:02][%csl Ra6,Rb2]} 30. h3 {[%emt 0:
02:37]} Be8 {[%emt 0:01:06]} 31. Rxd8 {[%emt 0:00:42]} Rxd8 {[%emt 0:00:03]}
32. Rxd8 {[%emt 0:00:14]} Qxd8 {[%emt 0:00:03]} 33. Qc5 {[%emt 0:00:12]} Qb8 {
[%emt 0:02:08]} 34. Kf2 {[%emt 0:02:21]} Nd7 {[%emt 0:00:29]} 35. Qb5 {[%emt 0:
00:46]} 1/2-1/2

[Event "Rohde op 09th"]
[Site "Sautron"]
[Date "2009.10.25"]
[Round "2"]
[White "Agrest, Evgenij"]
[Black "Philippe, Christophe"]
[Result "1-0"]
[ECO "A17"]
[WhiteElo "2588"]
[BlackElo "2430"]
[Annotator "Primel,D"]
[PlyCount "117"]
[EventDate "2009.10.24"]
[EventType "swiss"]
[EventRounds "9"]
[EventCountry "FRA"]
[SourceTitle "EXT 2010"]
[Source "ChessBase"]
[SourceDate "2010.11.25"]
[SourceVersion "1"]
[SourceVersionDate "2010.11.25"]
[SourceQuality "1"]
[TimeControl "40/6000+30:1800+30"]

1. Nf3 Nf6 2. c4 e6 3. Nc3 Bb4 {La variante Nimzo anglaise souvent jouée par
ADAMS} 4. Qc2 (4. g4 $5 {La dernière mode}) 4... O-O (4... c5) (4... b6) 5. a3
Bxc3 6. Qxc3 b6 7. e3 (7. g3) (7. b4 {[%cal Gc1b2] plus ambitieux}) 7... Bb7 8.
Be2 d6 (8... c5) (8... Ne4) 9. b3 Nbd7 10. Bb2 e5 $1 $11 {[%csl Rb2]} (10... c5
) 11. d3 (11. O-O Ne4 12. Qc2 f5 $132 {Maksimenko,A (2455)-Timoshenko,G (2480)
Caciulata Calimanesti 1992 0-1}) 11... Re8 12. O-O Nc5 $146 ({RR} 12... c5 13.
Nd2 d5 14. cxd5 Nxd5 15. Qc4 Rc8 16. Ne4 Nf8 17. Bf3 Qd7 18. Ng3 Rc7 19. Rac1
Ng6 20. Rfd1 Kh8 21. a4 f6 22. h3 Rd8 23. Qg4 Qf7 24. Qc4 Qd7 25. h4 Nge7 26.
h5 h6 27. Qh4 {Savon,V (2430)-Khasin,A (2410)/Norilsk 1987/EXT 1997/1-0 (61)})
13. Rad1 (13. b4 $6 Na4) (13. d4 Nce4) 13... Qd7 {[%csl Rd7] Assez douteux
mais le français va ensuite pouvoir exploiter la colonne "e" semi-ouverte avec
ses R pour les faire transiter vers l'aile-roi} (13... Ne6 {[%csl Gd4]}) (13...
Qe7 $142 {Semble davantage dans l'esprit de la position.} 14. d4 exd4 15. Nxd4
a5) 14. d4 $1 {[%cal Gd1d7]} exd4 (14... Nce4 15. Qc1 Qf5) 15. Nxd4 Re5 $5 {
[%cal Ge5g5]} 16. f3 $1 $14 {[%csl Rb7]} Rg5 (16... Rae8 17. e4) 17. Kh1 Re8
18. Bc1 {[%cal Gc1g5,Ge3e4]} Ree5 $5 {si l'attaque noire échoue les R seront
mal placées} 19. Qe1 (19. e4 {[%cal Gc1g5]} Nfxe4 $1 $13) 19... Rg6 20. e4 Rh5
21. Bf4 {[%cal Gf4h2]} (21. Nf5 $5 {ce Nf5 va ensuite gêner les R noires et en
particulier celle en "h5" qui est trés exposée.}) 21... Ne6 22. Nxe6 Qxe6 23.
Bd3 {[%cal Gd3g6,Ge4e5]} Nd7 24. e5 $1 {[%cal Gd3g6]} Nxe5 25. Bxg6 hxg6 26.
Qe3 f6 27. Rfe1 $16 Kf7 (27... g5 28. Bg3) 28. Rd2 Bc6 29. Bg3 g5 30. Qc3 Rh8
31. b4 Rb8 (31... Qxc4 32. Rc2 (32. Bxe5 $2 Rxh2+ $3 33. Kxh2 Qh4+ 34. Kg1
Qxe1+ {[%csl Rg1][%cal Ge1h4]}) 32... Qxc3 33. Rxc3 {[%csl Rc6,Rc7]} Bb5 34.
Rxc7+ Kg6 35. Rxa7 $18 {[%cal Ga3a4,Ga4a5]}) 32. Rde2 Qf5 33. Re3 g4 34. f4 Ng6
35. Qd2 (35. b5 Bb7 36. Kg1) 35... Kg8 36. R3e2 Kh7 37. Kg1 d5 $6 $138 {
la position noire était déjà difficile mais elle sera critique après cet
affaiblissement} 38. cxd5 Bxd5 39. Qc2 {[%cal Gc2h7]} Ne7 40. Rc1 {Provoquant
des échanges qui favorisent les blancs} Qxc2 41. Rcxc2 Nf5 42. Rxc7 $40 {
[%csl Ra7]} a6 43. Rd2 {[%cal Gd2d7]} Be4 44. Bf2 {[%csl Rb6]} Kg6 45. Rc3 Rb7
$6 (45... b5) 46. Rc4 $18 Re7 47. Re2 Bd3 48. Rxe7 Bxc4 49. Ra7 b5 50. Bc5 Nh4
51. Rxa6 Kf5 52. Rd6 Ng6 53. g3 Nf8 54. Kf2 Ne6 55. Ke3 g5 56. Bd4 gxf4+ 57.
gxf4 Bb3 58. Rb6 Ba4 59. Bc3 1-0

[Event "Plancoet op-A 10th"]
[Site "Plancoet"]
[Date "2013.07.30"]
[Round "4"]
[White "Jianu, Vlad Cristian"]
[Black "Mladenov, Plamen"]
[Result "1-0"]
[ECO "A17"]
[WhiteElo "2560"]
[BlackElo "2405"]
[Annotator "RR"]
[PlyCount "111"]
[EventDate "2013.07.28"]
[EventType "swiss"]
[EventRounds "9"]
[EventCountry "FRA"]
[SourceTitle "EXT 2017"]
[Source "ChessBase"]
[SourceDate "2016.10.25"]
[SourceVersion "1"]
[SourceVersionDate "2016.10.25"]
[SourceQuality "1"]
[TimeControl "40/5400+30:1800+30"]

1. Nf3 Nf6 2. c4 c5 3. g3 b6 4. Bg2 Bb7 5. O-O e6 6. Nc3 Be7 7. Re1 Ne4 (7...
d5) 8. Nxe4 (8. Qc2) 8... Bxe4 9. d3 Bb7 10. e4 d6 (10... O-O) (10... Nc6) 11.
d4 cxd4 12. Nxd4 O-O 13. b3 (13. a4 $5 a6 14. a5 $14 {Akhmetov,A (2438)
-Mirzoev,A (2438) St Petersburg White Nights 2000 (1) 0-1} (14. b3 $5 {[%cal
Ga1a2,Ga2d2]})) 13... a6 14. Ba3 (14. Bb2 Nd7 15. e5 Bxg2 16. exd6 Bxd6 17.
Kxg2 Qc7 18. Qe2 Nf6 19. Nf3 Be7 20. Nd4 Bd6 21. Nf3 Be7 22. Ne5 Bd6 23. Nd3
Be7 24. Rad1 Rfd8 25. h3 h6 26. Ne5 Rxd1 27. Rxd1 Rd8 28. Rxd8+ Bxd8 29. Qf3
Qc8 30. Qc6 Qxc6+ 31. Nxc6 {1/2-1/2 (31) Iturrizaga Bonelli,E (2649)-Bruzon
Batista,L (2691) Santo Domingo 2012}) 14... Qc7 15. Qd2 Nc6 $146 {[%cal Gc6d4,
Ge7f6]} (15... Nd7 16. Rad1 Rfd8 17. Bb4 Nc5 18. Qe3 Bf8 19. f4 Rac8 20. f5 e5
21. Ne2 a5 22. Bd2 Nxe4 23. Bxe4 d5 24. Nc3 dxe4 25. Qe2 Bc5+ 26. Be3 Bb4 27.
Nb5 Qe7 28. Rxd8+ Rxd8 29. Rd1 Bc5 30. Rxd8+ Qxd8 31. Bxc5 bxc5 32. h4 g6 33.
Qf1 e3 34. fxg6 hxg6 35. Qe2 Qd2 {0-1 (35) Guilleux,F (2397)-Terrieux,K (2360)
Pau 2008}) 16. Rad1 Nxd4 17. Qxd4 Rfd8 18. Re2 {Un fort coup multifonction qui
permet non seulement de doubler les R mais aussi d'anticiper la protection du
P après l'ouverture de la colonne "a"} b5 $1 19. cxb5 axb5 20. Bb4 $14 Bf8 21.
Red2 Rac8 22. h4 $1 {[%cal Gh4h5,Gh5h6,Gb4c3]} Qc6 23. Kh2 (23. h5 h6 (23... f5
24. h6 e5 25. Qe3 g6 (25... fxe4 26. Bh3 Rc7 27. Be6+ Kh8 28. Ba5) 26. f4 {
[%cal Gd2g2]} fxe4 27. Bh3 Bxh6 28. Be6+ Kh8 29. Bxd6 {[%cal Gd6e5]}) 24. f4)
23... f5 24. Re2 fxe4 25. Bxe4 d5 {Le centre Noir va perdre sa souplesse
après ce coup et les Noirs commencent à souffrir} 26. Bg2 (26. Bd3 {[%csl
Rh7]}) 26... Bxb4 27. Qxb4 Rc7 28. Rde1 (28. Bh3 $5) 28... Bc8 29. Bh3 $36 Qc5
30. Qxc5 Rxc5 31. Kg2 Bb7 32. Bxe6+ Kf8 33. Bg4 d4+ 34. Bf3 Bxf3+ 35. Kxf3 Rc3+
36. Kg2 b4 37. Rd2 d3 38. Kf3 Rc2 39. Rxc2 dxc2 40. Rc1 Rc8 41. Ke2 Rc3 42. Kd2
Rf3 43. Rf1 Kf7 44. Kxc2 Kf6 45. Kd2 (45. Kb2 {[%cal Ga2a3]}) 45... Kf5 46. Ke2
Rc3 47. Rd1 Ke4 48. Rd7 Rc2+ 49. Kf1 h5 50. Rb7 Rxa2 51. Rxb4+ {Les blancs ont
réussi à se débarasser de la faiblesse "a2" et le gain est assez facile à
réaliser} Kf5 52. Rb5+ Kg6 53. Rg5+ (53. Kg2 Rb2) 53... Kh6 54. b4 Rb2 55. b5
g6 56. f4 1-0